bitfinex/quotes_SOLUSD_20240714
["timestamp","ask_amount","ask_price","bid_price","bid_amount"]
[1720984663318,3.13775988,145.38,145.33,11.16]
[1720984663518,18.0381,145.39,145.33,11.16]
[1720984663814,3.13775911,145.38,145.33,11.16]
[1720984664035,18.0381,145.39,145.33,11.16]
[1720984664218,3.13779141,145.38,145.33,11.16]
[1720984664408,18.0377,145.4,145.34,11.16]
[1720984664613,3.13786046,145.39,145.35,1.37581472]
[1720984664814,18.0377,145.4,145.35,1.37581472]
[1720984665039,3.13786128,145.39,145.35,1.37581472]
[1720984665217,18.0377,145.4,145.35,1.37581472]
[1720984665512,3.13785367,145.39,145.35,1.37581472]
[1720984665834,18.0377,145.4,145.34,11.16]
[1720984666013,10.01572752,145.39,145.34,11.16]
[1720984666213,3.13772752,145.38,145.34,11.16]
[1720984667330,6.878,145.39,145.34,11.16]
[1720984668336,3.13765017,145.38,145.34,11.16]
[1720984668535,6.878,145.39,145.34,11.16]
[1720984668835,3.13762373,145.38,145.34,11.16]
[1720984669029,6.878,145.39,145.34,11.16]
[1720984669428,3.13764704,145.38,145.34,11.16]
[1720984669636,6.878,145.39,145.34,11.16]
[1720984670440,6.878,145.39,145.35,1.37583081]
[1720984670614,18.038,145.39,145.35,1.37583081]
[1720984670817,6.8777,145.4,145.36,1.37582448]
[1720984671028,3.13774423,145.39,145.36,1.37582448]
[1720984671223,6.8777,145.4,145.36,1.37582448]
[1720984671423,3.13769185,145.39,145.36,1.37582448]
[1720984671638,6.8777,145.4,145.36,1.37582448]
[1720984671826,3.1376971,145.39,145.36,1.37582448]
[1720984672028,6.8777,145.4,145.36,1.37582448]
[1720984672221,3.13755098,145.39,145.36,1.37582448]
[1720984672416,11.16,145.41,145.36,1.37582448]
[1720984672723,6.878,145.39,145.36,1.37582448]
[1720984675335,6.878,145.39,145.32,22.0236]
[1720984675546,6.8785,145.38,145.34,11.16]
[1720984676121,11.16,145.39,145.34,11.16]
[1720984676122,8.94714727,145.39,145.34,11.16]
[1720984676346,11.16,145.39,145.34,11.16]
[1720984676651,3.13664697,145.38,145.34,11.16]
[1720984676939,11.16,145.39,145.34,11.16]
[1720984677239,3.13647717,145.38,145.34,11.16]
[1720984677426,11.16,145.39,145.34,11.16]
[1720984677633,10.01492302,145.38,145.34,18.0402]
[1720984677832,6.8788,145.38,145.34,18.0402]
[1720984678139,18.0381,145.39,145.35,6.8798]
[1720984678318,3.13611991,145.38,145.35,6.8798]
[1720984678522,3.13611991,145.37,145.35,6.8798]
[1720984678723,18.0381,145.39,145.35,6.8798]
[1720984678941,3.13609998,145.38,145.35,6.8798]
[1720984679242,3.13609998,145.37,145.35,6.8798]
[1720984679542,18.0381,145.39,145.35,6.8798]
[1720984679745,3.13681666,145.38,145.35,6.8798]
[1720984679949,3.13681666,145.37,145.35,6.8798]
[1720984680133,3.13681666,145.38,145.35,6.8798]
[1720984682050,18.0381,145.39,145.35,6.8798]
[1720984682241,3.13663795,145.38,145.35,6.8798]
[1720984682546,3.13660621,145.37,145.34,18.0402]
[1720984682749,18.0381,145.39,145.34,18.0402]
[1720984682750,18.0385,145.38,145.34,6.8802]
[1720984682924,14.29664114,145.37,145.34,6.8802]
[1720984683124,11.16,145.37,145.34,6.8802]
[1720984683649,11.16,145.37,145.35,6.8798]
[1720984683836,11.16,145.38,145.35,6.8798]
[1720984684039,3.13790617,145.37,145.35,6.8798]
[1720984684243,11.16,145.38,145.35,6.8798]
[1720984684421,3.13797124,145.37,145.35,6.8798]
[1720984684628,11.16,145.38,145.35,6.8798]
[1720984684842,3.13797122,145.37,145.35,6.8798]
[1720984685049,11.16,145.38,145.35,6.8798]
[1720984685224,3.13797482,145.37,145.35,6.8798]
[1720984685426,11.16,145.38,145.35,6.8798]
[1720984685653,3.13797482,145.37,145.35,6.8798]
[1720984685955,11.16,145.38,145.35,6.8798]
[1720984686161,3.13797046,145.37,145.35,6.8798]
[1720984686332,11.16,145.38,145.35,6.8798]
[1720984686526,3.13797046,145.37,145.35,6.8798]
[1720984686749,11.16,145.38,145.35,6.8798]
[1720984686946,3.13803471,145.37,145.35,6.8798]
[1720984687149,11.16,145.38,145.35,6.8798]
[1720984687353,3.13803394,145.37,145.35,6.8798]
[1720984687526,11.16,145.38,145.35,6.8798]
[1720984687726,3.13803471,145.37,145.35,6.8798]
[1720984687948,11.16,145.38,145.35,6.8798]
[1720984688155,3.1380022,145.37,145.35,6.8798]
[1720984688330,11.16,145.38,145.35,6.8798]
[1720984688532,3.13800749,145.37,145.35,6.8798]
[1720984688855,11.16,145.38,145.35,6.8798]
[1720984689030,3.13805484,145.37,145.35,6.8798]
[1720984689231,11.16,145.38,145.35,6.8798]
[1720984689431,14.29808068,145.37,145.35,6.8798]
[1720984689626,3.13803879,145.36,145.35,6.8798]
[1720984689823,3.13803879,145.36,145.34,6.8802]
[1720984690021,11.16,145.37,145.34,6.8802]
[1720984690243,3.13807526,145.36,145.34,6.8802]
[1720984690439,11.16,145.37,145.34,6.8802]
[1720984690640,3.13806721,145.36,145.34,6.8802]
[1720984690948,11.16,145.37,145.35,6.8799]
[1720984691249,3.13796836,145.36,145.35,6.8799]
[1720984691629,11.16,145.38,145.35,6.8799]
[1720984691829,3.13804004,145.37,145.35,6.8799]
[1720984692029,11.16,145.38,145.35,6.8799]
[1720984692229,3.13804652,145.37,145.35,6.8799]
[1720984692456,11.16,145.38,145.35,6.8799]
[1720984692622,3.13804652,145.37,145.35,6.8799]
[1720984692827,11.16,145.38,145.35,6.8799]
[1720984693121,3.13800952,145.37,145.35,6.8799]
[1720984693349,11.16,145.38,145.35,6.8799]
[1720984693552,3.13800661,145.37,145.35,6.8799]
[1720984693855,11.16,145.38,145.35,6.8799]
[1720984694022,3.1380362,145.37,145.35,6.8799]
[1720984694228,11.16,145.38,145.35,6.8799]
[1720984694459,3.13804126,145.37,145.35,6.8799]
[1720984694628,11.16,145.38,145.35,6.8799]
[1720984694829,3.13866185,145.37,145.35,6.8799]
[1720984695041,11.16,145.38,145.35,6.8799]
[1720984695233,3.13863022,145.37,145.35,6.8799]
[1720984695431,11.16,145.38,145.35,6.8799]
[1720984695847,3.13834131,145.37,145.35,6.8799]
[1720984696151,11.16,145.38,145.35,6.8799]
[1720984696330,3.13826582,145.37,145.35,6.8799]
[1720984696534,18.0381,145.39,145.35,6.8799]
[1720984696838,3.13815692,145.38,145.35,6.8799]
[1720984697149,3.13815692,145.37,145.35,6.8799]
[1720984697457,3.13815692,145.36,145.34,6.8803]
[1720984697649,14.29755969,145.35,145.26,15.5852]
[1720984697828,3.13755969,145.34,145.28,6.8831]
[1720984698031,16.6588,145.35,145.29,6.8827]
[1720984698032,11.16,145.32,145.29,6.8827]
[1720984699447,6.8813,145.33,145.29,6.8827]
[1720984699642,11.16,145.32,145.28,6.8831]
[1720984700630,6.8813,145.33,145.29,6.8827]
[1720984700844,18.0404,145.34,145.29,18.0427]
[1720984702429,6.881,145.33,145.29,18.0427]
[1720984707135,6.881,145.33,145.29,11.16]
[1720984707456,6.881,145.33,145.29,12.53634955]
[1720984708566,6.881,145.33,145.3,11.16]
[1720984710670,6.881,145.33,145.3,12.33288868]
[1720984711247,17.1986,145.36,145.31,11.16]
[1720984711248,6.8805,145.34,145.31,11.16]
[1720984711473,6.8805,145.34,145.31,12.53614601]
[1720984716093,6.88,145.35,145.31,18.0417]
[1720984717088,6.88,145.35,145.31,11.16]
[1720984717958,6.8804,145.34,145.3,33.5039]
[1720984720087,18.04,145.35,145.3,33.5039]
[1720984721161,18.04,145.35,145.31,6.8816]
[1720984721581,6.88,145.35,145.31,6.8816]
[1720984722187,6.88,145.35,145.31,18.0416]
[1720984723680,18.04,145.35,145.31,6.8816]
[1720984724887,6.88,145.35,145.31,6.8816]
[1720984725265,6.88,145.35,145.31,18.0416]
[1720984733575,18.0396,145.36,145.32,6.8813]
[1720984733770,6.8796,145.36,145.32,18.0413]
[1720984735683,6.8796,145.36,145.32,6.8813]
[1720984735879,6.88,145.35,145.31,6.8817]
[1720984736076,6.88,145.35,145.31,18.0417]
[1720984736697,18.0395,145.36,145.32,8.25736562]
[1720984736885,6.8791,145.37,145.33,18.0405]
[1720984738700,6.8791,145.37,145.34,1.37595493]
[1720984741691,11.16,145.38,145.35,11.16]
[1720984741692,6.8786,145.38,145.35,11.16]
[1720984742016,3.13646564,145.37,145.35,12.53580809]
[1720984742203,6.8786,145.38,145.35,12.53580809]
[1720984742388,3.13650189,145.37,145.36,1.37576436]
[1720984742905,3.13649823,145.37,145.36,1.37576436]
[1720984743491,3.13649823,145.37,145.35,12.53575404]
[1720984743689,6.8786,145.38,145.35,12.53575404]
[1720984743896,3.13653014,145.37,145.35,12.53575404]
[1720984744081,6.8786,145.38,145.35,12.53575404]
[1720984744286,3.13658228,145.37,145.34,33.0957]
[1720984744485,6.8786,145.38,145.34,33.0957]
[1720984744699,3.13662955,145.37,145.34,33.0957]
[1720984744904,6.8786,145.38,145.34,33.0957]
[1720984745100,3.13655796,145.37,145.34,33.0957]
[1720984745403,6.8786,145.38,145.34,33.0957]
[1720984745607,3.13675061,145.37,145.34,33.0957]
[1720984745817,6.8786,145.38,145.34,33.0957]
[1720984745987,3.13684874,145.37,145.34,33.0957]
[1720984746189,6.8786,145.38,145.34,33.0957]
[1720984746407,3.13684951,145.37,145.34,33.0957]
[1720984746594,11.16,145.39,145.35,6.8798]
[1720984746898,3.13684996,145.38,145.35,6.8798]
[1720984747105,3.13684996,145.37,145.35,6.8798]
[1720984747301,18.0381,145.39,145.35,6.8798]
[1720984747511,3.13681821,145.38,145.35,6.8798]
[1720984747711,3.13681821,145.37,145.35,6.8798]
[1720984747909,18.0381,145.39,145.35,6.8798]
[1720984748207,3.13684996,145.38,145.35,6.8798]
[1720984748406,3.13684996,145.37,145.35,6.8798]
[1720984748609,18.0381,145.39,145.35,6.8798]
[1720984748811,3.13663686,145.38,145.35,6.8798]
[1720984749003,3.13663686,145.37,145.35,6.8798]
[1720984749185,18.0381,145.39,145.35,6.8798]
[1720984749390,3.13667466,145.38,145.35,6.8798]
[1720984749590,3.13667466,145.37,145.35,18.0398]
[1720984749809,6.8781,145.39,145.35,18.0398]
[1720984750012,3.13663682,145.38,145.35,18.0398]
[1720984750216,3.13663682,145.37,145.35,18.0398]
[1720984750421,6.8781,145.39,145.35,18.0398]
[1720984750713,3.13667649,145.38,145.35,18.0398]
[1720984750895,3.13667649,145.37,145.35,18.0398]
[1720984751212,3.13663041,145.36,145.35,18.0398]
[1720984752702,18.0376,145.4,145.35,18.0398]
[1720984752907,3.13645797,145.39,145.35,18.0398]
[1720984753105,3.1364598,145.38,145.35,18.0398]
[1720984753297,3.1364598,145.37,145.35,18.0398]
[1720984753497,3.1364598,145.36,145.35,18.0398]
[1720984754519,18.0376,145.4,145.35,18.0398]
[1720984754714,3.13647105,145.39,145.35,6.8798]
[1720984754889,3.13647105,145.38,145.35,6.8798]
[1720984755093,3.13647105,145.37,145.35,6.8798]
[1720984755307,18.0376,145.4,145.35,6.8798]
[1720984755509,3.13647562,145.39,145.35,6.8798]
[1720984755714,3.13647562,145.38,145.36,6.8794]
[1720984755896,3.13647562,145.39,145.36,6.8794]
[1720984756088,3.13647562,145.37,145.36,6.8794]
[1720984756288,3.13647574,145.37,145.36,6.8794]
[1720984759617,3.13725964,145.37,145.36,6.8794]
[1720984762802,3.13725964,145.37,145.35,6.8797]
[1720984763002,18.0382,145.39,145.35,6.8797]
[1720984763506,3.13732351,145.38,145.35,6.8797]
[1720984763819,3.13732351,145.37,145.35,6.8797]
[1720984764120,18.0382,145.39,145.35,6.8797]
[1720984764419,3.13739915,145.38,145.35,6.8797]
[1720984764615,3.13739915,145.37,145.35,6.8797]
[1720984764816,18.0382,145.39,145.35,6.8797]
[1720984765015,3.1374513,145.38,145.35,6.8797]
[1720984765216,3.1374513,145.37,145.35,6.8797]
[1720984765399,3.1374513,145.38,145.36,6.8794]
[1720984766296,11.16,145.38,145.36,6.8794]
[1720984766521,3.13901858,145.37,145.36,6.8794]
[1720984769829,3.13913495,145.37,145.36,6.8794]
[1720984773229,3.13866464,145.37,145.36,6.8794]
[1720984776717,3.13852298,145.37,145.36,6.8794]
[1720984778239,11.16,145.41,145.37,6.8786]
[1720984778417,3.13860939,145.4,145.37,6.8786]
[1720984778621,3.13860939,145.39,145.37,6.8786]
[1720984778828,3.13860939,145.38,145.37,6.8786]
[1720984780118,3.13857832,145.38,145.37,6.8786]
[1720984781243,18.0372,145.41,145.37,6.8786]
[1720984781427,3.13858023,145.4,145.37,6.8786]
[1720984781628,3.13858023,145.39,145.37,6.8786]
[1720984781823,3.13858023,145.4,145.37,6.8786]
[1720984782031,3.13858023,145.39,145.37,6.8786]
[1720984782322,3.13858023,145.38,145.37,6.8786]
[1720984782525,3.13858023,145.4,145.37,6.8786]
[1720984782755,3.13858023,145.39,145.37,6.8786]
[1720984782953,3.13858023,145.4,145.37,6.8786]
[1720984783250,3.13858023,145.39,145.37,6.8786]
[1720984783546,3.13854343,145.38,145.37,6.8786]
[1720984783953,3.13854282,145.38,145.37,8.25429721]
[1720984784257,6.8762,145.43,145.39,6.8777]
[1720984784445,3.13829707,145.42,145.39,18.0377]
[1720984784623,3.13829707,145.41,145.39,18.0377]
[1720984784824,6.8762,145.43,145.39,18.0377]
[1720984785026,3.13827193,145.42,145.39,18.0377]
[1720984785353,6.8762,145.43,145.39,18.0377]
[1720984785554,3.13827116,145.42,145.39,18.0377]
[1720984785756,6.8762,145.43,145.39,18.0377]
[1720984785929,3.13827116,145.42,145.39,18.0377]
[1720984786250,6.8762,145.43,145.39,11.16]
[1720984786455,3.13827039,145.42,145.39,11.16]
[1720984786617,6.8762,145.43,145.39,11.16]
[1720984786821,3.13827039,145.42,145.39,18.038]
[1720984787144,11.16,145.44,145.39,18.038]
[1720984787338,3.13821614,145.43,145.39,18.038]
[1720984787646,11.16,145.44,145.39,18.038]
[1720984787839,10.01468075,145.43,145.39,18.038]
[1720984788033,3.13818075,145.42,145.39,6.878]
[1720984788433,18.0365,145.43,145.38,18.0383]
[1720984788636,3.13832433,145.42,145.38,18.0383]
[1720984788820,18.0365,145.43,145.38,18.0383]
[1720984789026,3.13832433,145.42,145.38,18.0383]
[1720984789225,18.0365,145.43,145.38,18.0383]
[1720984789426,3.13832433,145.42,145.38,18.0383]
[1720984789725,18.0365,145.43,145.39,6.8779]
[1720984790039,3.13832356,145.42,145.39,6.8779]
[1720984790441,18.0365,145.43,145.39,6.8779]
[1720984793048,11.16,145.43,145.39,6.8779]
[1720984795961,6.8758,145.44,145.4,6.8775]
[1720984796165,3.13826854,145.43,145.41,6.8769]
[1720984796334,11.16,145.44,145.41,6.8769]
[1720984796646,18.0355,145.45,145.41,6.8769]
[1720984796845,3.13794847,145.44,145.41,6.8769]
[1720984797154,11.16,145.44,145.41,6.8769]
[1720984797359,18.0355,145.45,145.41,6.8769]
[1720984797539,3.13794924,145.44,145.41,6.8769]
[1720984797750,18.0355,145.45,145.41,6.8769]
[1720984798047,14.29794924,145.44,145.4,6.8774]
[1720984798252,11.16,145.44,145.4,6.8774]
[1720984798437,18.0357,145.44,145.4,6.8774]
[1720984800152,18.0357,145.44,145.39,11.16]
[1720984800153,11.16,145.43,145.39,6.8778]
[1720984801155,11.16,145.43,145.4,6.8775]
[1720984803545,18.0366,145.42,145.35,15.5059]
[1720984803756,11.16,145.41,145.38,6.8784]
[1720984804840,11.16,145.4,145.38,6.8784]
[1720984805261,11.16,145.4,145.37,6.8788]
[1720984805652,11.16,145.39,145.37,6.8788]
[1720984807954,11.16,145.39,145.38,6.8785]
[1720984808158,11.16,145.4,145.38,6.8785]
[1720984830361,3.13926142,145.39,145.38,6.8785]
[1720984830566,3.13926219,145.39,145.38,6.8785]
[1720984830967,3.13926219,145.39,145.37,6.8788]
[1720984830968,14.29926219,145.39,145.37,6.8788]
[1720984831179,11.16,145.38,145.37,6.8788]
[1720984834472,11.16,145.39,145.38,6.8785]
[1720984834673,14.29919972,145.39,145.38,6.8785]
[1720984839990,14.29919972,145.39,145.32,15.4168]
[1720984840175,11.16,145.37,145.32,15.4168]
[1720984841485,11.16,145.37,145.36,6.8793]
[1720984841692,14.30033229,145.37,145.36,6.8793]
[1720984842807,3.14033229,145.37,145.36,6.8793]
[1720984842969,14.30033229,145.37,145.32,15.4168]
[1720984843289,11.16,145.35,145.3,11.16]
[1720984843495,11.16,145.34,145.33,6.8808]
[1720984844090,14.30085933,145.34,145.33,6.8808]
[1720984844275,11.16,145.34,145.33,6.8808]
[1720984847589,11.16,145.35,145.34,6.8804]
[1720984855703,11.16,145.35,145.33,6.8807]
[1720984858205,11.16,145.35,145.32,6.8811]
[1720984867121,18.0404,145.34,145.28,15.4168]
[1720984867321,11.16,145.33,145.3,6.8819]
[1720984867697,11.16,145.32,145.3,6.8819]
[1720984878133,11.16,145.32,145.28,15.4168]
[1720984878134,11.16,145.32,145.29,6.8826]
[1720984878716,11.16,145.31,145.29,6.8826]
[1720984879631,11.16,145.32,145.29,6.8826]
[1720984883634,15.1979,145.36,145.29,1.37647735]
[1720984883821,11.16,145.34,145.3,1.37634707]
[1720984884023,6.8799,145.36,145.3,1.37634707]
[1720984884329,11.16,145.34,145.32,6.8813]
[1720984884839,6.8799,145.35,145.31,6.8817]
[1720984885130,3.14042936,145.34,145.31,6.8817]
[1720984885345,11.16,145.34,145.31,6.8817]
[1720984887341,3.1406872,145.33,145.31,6.8817]
[1720984887634,11.16,145.34,145.31,6.8817]
[1720984887839,3.14068659,145.33,145.31,6.8817]
[1720984888041,11.16,145.34,145.31,6.8817]
[1720984888243,3.14068797,145.33,145.31,6.8817]
[1720984888425,11.16,145.34,145.31,6.8817]
[1720984888743,3.14059267,145.33,145.31,6.8817]
[1720984888957,11.16,145.34,145.31,6.8817]
[1720984889130,3.14059514,145.33,145.31,6.8817]
[1720984889329,18.0404,145.34,145.3,6.8821]
[1720984889652,14.30059083,145.33,145.3,6.8821]
[1720984889833,11.16,145.33,145.3,6.8821]
[1720984890626,18.0409,145.33,145.29,6.8826]
[1720984891821,11.16,145.32,145.29,6.8826]
[1720984893048,11.16,145.32,145.3,6.8822]
[1720984896053,6.8805,145.34,145.3,6.8822]
[1720984896254,14.30071598,145.33,145.3,6.8822]
[1720984896424,11.16,145.33,145.3,6.8822]
[1720984902137,11.16,145.33,145.31,6.8818]
[1720984902437,11.16,145.34,145.31,6.8818]
[1720984902642,3.14005282,145.33,145.31,6.8818]
[1720984902858,11.16,145.34,145.31,6.8818]
[1720984903043,3.14015444,145.33,145.31,6.8818]
[1720984903241,11.16,145.34,145.31,6.8818]
[1720984903541,3.1401074,145.33,145.31,6.8818]
[1720984903761,11.16,145.34,145.31,6.8818]
[1720984903952,3.14007995,145.33,145.31,6.8818]
[1720984904144,11.16,145.34,145.31,6.8818]
[1720984904541,3.14008425,145.33,145.31,6.8818]
[1720984904738,11.16,145.34,145.31,6.8818]
[1720984904954,3.14008502,145.33,145.31,6.8818]
[1720984905154,18.0404,145.34,145.3,6.8821]
[1720984905453,3.14008364,145.33,145.3,6.8821]
[1720984905748,18.0404,145.34,145.3,6.8821]
[1720984905961,3.14008732,145.33,145.3,6.8821]
[1720984906159,18.0404,145.34,145.3,6.8821]
[1720984906453,3.14008809,145.33,145.3,6.8821]
[1720984906647,18.0404,145.34,145.3,6.8821]
[1720984906847,3.14008318,145.33,145.3,6.8821]
[1720984907050,18.0404,145.34,145.3,6.8821]
[1720984907246,3.14008395,145.33,145.3,6.8821]
[1720984907442,18.0404,145.34,145.3,6.8821]
[1720984907757,3.1400795,145.33,145.3,6.8821]
[1720984907950,11.16,145.33,145.3,6.8821]
[1720984908350,11.16,145.32,145.3,6.8821]
[1720984910157,11.16,145.33,145.3,6.8821]
[1720984911463,3.13981837,145.32,145.3,6.8821]
[1720984911761,11.16,145.33,145.3,6.8821]
[1720984912140,3.13981837,145.32,145.3,6.8821]
[1720984912438,11.16,145.33,145.3,6.8821]
[1720984912758,3.13981837,145.32,145.3,6.8821]
[1720984913054,11.16,145.33,145.3,6.8821]
[1720984913254,3.13982205,145.32,145.3,6.8821]
[1720984913457,11.16,145.33,145.3,6.8821]
[1720984913633,11.16,145.33,145.28,26.5768]
[1720984913634,3.1398265,145.32,145.31,6.8817]
[1720984914837,3.13939983,145.32,145.31,6.8817]
[1720984915244,3.13948721,145.32,145.31,6.8817]
[1720984918139,3.13874702,145.32,145.31,6.8817]
[1720984920359,3.13874702,145.32,145.3,6.8823]
[1720984920659,11.16,145.33,145.3,6.8823]
[1720984920838,3.13881331,145.32,145.3,6.8823]
[1720984921034,11.16,145.33,145.3,6.8823]
[1720984921251,3.13881331,145.32,145.3,6.8823]
[1720984921460,11.16,145.33,145.3,6.8823]
[1720984921663,3.13877533,145.32,145.3,6.8823]
[1720984921957,11.16,145.33,145.3,6.8823]
[1720984922256,3.13834916,145.32,145.3,6.8823]
[1720984922457,11.16,145.33,145.3,6.8823]
[1720984922643,3.13831349,145.32,145.3,6.8823]
[1720984922839,11.16,145.33,145.3,6.8823]
[1720984923047,3.13831426,145.32,145.3,6.8823]
[1720984923362,11.16,145.33,145.3,6.8823]
[1720984923554,3.1383154,145.32,145.3,6.8823]
[1720984923758,11.16,145.33,145.3,6.8823]
[1720984923946,3.13831303,145.32,145.3,6.8823]
[1720984924275,11.16,145.33,145.3,6.8823]
[1720984924582,3.13831188,145.32,145.3,6.8823]
[1720984924745,11.16,145.33,145.3,6.8823]
[1720984924934,3.13831266,145.32,145.31,6.8818]
[1720984926862,3.13831266,145.32,145.3,6.8821]
[1720984927060,18.0406,145.34,145.3,6.8821]
[1720984927263,3.13654826,145.33,145.3,6.8821]
[1720984927470,3.13655017,145.32,145.3,6.8821]
[1720984927660,18.0406,145.34,145.3,6.8821]
[1720984927859,3.13655094,145.33,145.3,6.8821]
[1720984928062,3.13655094,145.32,145.3,6.8821]
[1720984928370,18.0406,145.34,145.3,6.8821]
[1720984928570,3.13650243,145.33,145.3,6.8821]
[1720984928868,3.13650243,145.32,145.3,6.8821]
[1720984929073,3.13650243,145.33,145.3,6.8821]
[1720984930771,18.0406,145.34,145.3,6.8821]
[1720984931063,3.13647202,145.33,145.3,6.8821]
[1720984931768,3.13647202,145.34,145.31,6.8818]
[1720984932073,3.13647202,145.33,145.31,6.8818]
[1720984932280,3.13647202,145.32,145.31,6.8818]
[1720984932962,3.13647202,145.32,145.3,6.8821]
[1720984933142,18.0404,145.34,145.3,6.8821]
[1720984933341,3.13651893,145.33,145.3,6.8821]
[1720984933581,3.13651893,145.32,145.3,6.8821]
[1720984933746,11.16,145.33,145.3,6.8821]
[1720984933946,3.13651726,145.32,145.3,6.8821]
[1720984934161,11.16,145.33,145.3,6.8821]
[1720984934363,3.13654963,145.32,145.3,6.8821]
[1720984934548,11.16,145.33,145.3,6.8821]
[1720984934742,3.13651649,145.32,145.3,6.8821]
[1720984934953,11.16,145.33,145.3,6.8821]
[1720984935258,3.13651424,145.32,145.3,6.8821]
[1720984935456,11.16,145.33,145.3,6.8821]
[1720984935658,3.13654677,145.32,145.3,6.8821]
[1720984935942,11.16,145.33,145.3,6.8821]
[1720984936250,3.13654677,145.32,145.3,6.8822]
[1720984936461,11.16,145.33,145.3,6.8822]
[1720984936664,3.13654677,145.32,145.3,6.8822]
[1720984936962,11.16,145.33,145.3,6.8822]
[1720984937174,3.13654539,145.32,145.3,6.8822]
[1720984937464,11.16,145.33,145.3,6.8822]
[1720984937667,3.13651787,145.32,145.3,6.8822]
[1720984937854,11.16,145.33,145.3,6.8822]
[1720984938052,3.13651787,145.32,145.3,6.8822]
[1720984938247,11.16,145.33,145.3,6.8822]
[1720984938447,3.13561749,145.32,145.3,6.8822]
[1720984938670,11.16,145.33,145.3,6.8822]
[1720984938854,3.13565888,145.32,145.3,6.8822]
[1720984939053,11.16,145.33,145.3,6.8822]
[1720984939260,3.13557619,145.32,145.3,6.8822]
[1720984939553,11.16,145.33,145.3,6.8822]
[1720984939757,3.13571522,145.32,145.3,6.8822]
[1720984939961,11.16,145.33,145.3,6.8822]
[1720984940166,3.13571522,145.32,145.3,6.8822]
[1720984940348,11.16,145.33,145.3,6.8822]
[1720984940550,3.13580176,145.32,145.3,6.8822]
[1720984940849,11.16,145.33,145.3,6.8822]
[1720984941253,3.13576374,145.32,145.3,6.8822]
[1720984941453,11.16,145.33,145.3,6.8822]
[1720984941666,3.13576374,145.32,145.3,6.8822]
[1720984941874,11.16,145.33,145.3,6.8822]
[1720984942077,3.13576432,145.32,145.3,6.8822]
[1720984942255,11.16,145.33,145.3,6.8822]
[1720984942455,3.13585885,145.32,145.3,6.8822]
[1720984942651,11.16,145.33,145.3,6.8822]
[1720984942851,3.13592257,145.32,145.3,6.8822]
[1720984943166,11.16,145.33,145.3,6.8822]
[1720984943360,3.13592334,145.32,145.3,6.8822]
[1720984943564,11.16,145.33,145.3,6.8822]
[1720984943771,3.13589167,145.32,145.3,6.8822]
[1720984943974,11.16,145.33,145.3,6.8822]
[1720984944167,3.13589167,145.32,145.3,6.8822]
[1720984944364,11.16,145.33,145.3,6.8822]
[1720984944561,3.1358909,145.32,145.3,6.8822]
[1720984944771,11.16,145.33,145.3,6.8822]
[1720984945070,3.13588952,145.32,145.3,6.8822]
[1720984945251,11.16,145.33,145.3,6.8822]
[1720984945453,3.13589167,145.32,145.3,6.8822]
[1720984945660,11.16,145.33,145.3,6.8822]
[1720984945858,3.13589167,145.32,145.3,6.8822]
[1720984946072,11.16,145.33,145.3,6.8822]
[1720984946273,3.13589167,145.32,145.3,6.8822]
[1720984946474,11.16,145.33,145.3,6.8822]
[1720984946676,3.13589029,145.32,145.3,6.8822]
[1720984946870,11.16,145.33,145.3,6.8822]
[1720984947074,3.13589612,145.32,145.3,6.8822]
[1720984947374,11.16,145.33,145.3,6.8822]
[1720984947576,3.13589212,145.32,145.3,6.8822]
[1720984947879,11.16,145.33,145.3,6.8822]
[1720984948176,3.13591648,145.32,145.3,6.8822]